Cogmind - Beta 14 @@@ ROGUE MODE // 2024.08.31 @ 23:14:06 Player: Helstads_dog Result: Destroyed by KK-GTJ(R) with Subdweller Machine Gun Performance ------------- Evolutions (0) 0 Regions Visited (3) 600 Robots Destroyed (30) 150 Value Destroyed (629) 629 Prototype IDs (5) 100 Alien Tech Used (0) 0 Bonus (0) 0 TOTAL SCORE: 1479 Bonus ------- None Cogmind --------- Core Integrity 0/250 Matter 300/300 Energy 250/250 System Corruption 1% Temperature Cool (0) Movement Treading (160) Location -10/Subcaves Parts ------- > --- POWER (1) -------- Ion Engine > --- PROPULSION (2) --- Light Treads Light Treads > --- UTILITY (2) ------ Medium Storage Unit Light Armor Plating > --- WEAPON (2) ------- Subdweller Beam Cannon > --- INVENTORY (10) --- Light Treads Large Matter Pod (150) Light Armor Plating Rocket Launcher Mining Laser Peak State ------------ > --- POWER ------------ Ion Engine > --- PROPULSION ------- Light Treads Light Treads > --- UTILITY ---------- Medium Storage Unit Improved Light Armor Plating > --- WEAPON ----------- Beam Cannon Light Assault Rifle > --- INVENTORY -------- Ion Engine Light Treads Light Treads Light Treads Light Treads Large Matter Pod Light Armor Plating Light Armor Plating Assault Rifle Mining Laser [Rating: 10] Favorites ----------- Power Ion Engine Engine Ion Engine Propulsion Light Treads Treads Light Treads Leg Aluminum Leg Utility Medium Storage Unit Device Seismic Detector Storage Medium Storage Unit Processor Signal Interpreter Protection Light Armor Plating Weapon Beam Cannon Energy Gun Particle Gun Energy Cannon Beam Cannon Ballistic Gun Assault Rifle Launcher Grenade Launcher Special Weapon Mining Laser Build | -11 -10 -10 -10 ------- Run | Yrd Mat Min Sub Slots Evolved . | . . . . Power . | . . . . Propulsion . | . . . . Utility . | . . . . Weapon . | . . . . Parts Attached 42 | 7 18 9 8 Power 4 | 1 1 1 1 Engine 4 | 1 1 1 1 Core . | . . . . Reactor . | . . . . Propulsion 10 | 2 5 1 2 Treads 6 | . 3 1 2 Leg 4 | 2 2 . . Wheel . | . . . . Hover . | . . . . Flight . | . . . . Utility 10 | 2 5 2 1 Device 3 | 1 2 . . Storage 2 | 1 1 . . Processor 1 | . 1 . . Hackware . | . . . . Protection 4 | . 1 2 1 Artifact . | . . . . Weapon 18 | 2 7 5 4 Energy Gun 5 | 2 2 . 1 Energy Cannon 4 | . 3 . 1 Ballistic Gun 4 | . . 3 1 Ballistic Cannon . | . . . . Launcher 3 | . 2 1 . Special Weapon 2 | . . 1 1 Impact Weapon . | . . . . Slashing Weapon . | . . . . Piercing Weapon . | . . . . Special Melee Weapon . | . . . . Unidentified Prototypes . | . . . . Parts Lost 9 | . . 2 7 Power . | . . . . Propulsion 2 | . . . 2 Utility 2 | . . 1 1 Weapon 5 | . . 1 4 Highest Loss Streak 4 | . . 2 4 To Critical Strikes . | . . . . Average Slot Usage (%) 99 | . 100 99 93 Engine 14 | . 14 14 14 Treads 22 | . 16 28 27 Leg 5 | . 11 . . Device 2 | . 5 . . Storage 14 | . 14 14 14 Protection 11 | . 8 13 14 Energy Gun 7 | . 14 1 3 Energy Cannon 13 | . 13 14 12 Ballistic Gun 4 | . . 7 5 Launcher 1 | . . 3 . Peak Build Rating 10 | 7 9 10 10 Average Rating 8 | 5 8 8 8 On Entrance 6 | . 7 9 10 Naked Turns . | . . . . Heaviest Build 28 | 12 24 24 28 Greatest Support 40 | 20 40 40 40 Greatest Overweight (x) . | . . . . Average Overweight (x) . | . . . . Largest Inventory Capacity 10 | 8 10 10 10 Average Capacity 9 | 7 9 10 10 Most Carried 10 | 5 10 10 10 Average Carried 8 | 2 8 9 6 Final Capacity 10 | 8 10 10 10 Final Carried 10 | 5 10 10 5 Class Distribution -------------------- 77% | Scavenger-Mutant 22% | Mutant Dominant Class ---------------- Scavenger-Mutant | -10/Materials Scavenger-Mutant | -10/Mines Scavenger-Mutant | -10/Subcaves Resources | -11 -10 -10 -10 ----------- Run | Yrd Mat Min Sub Matter Collected 836 | 184 446 68 138 Remotely . | . . . . Salvage Created 867 | 12 542 172 141 Parts 49 | 4 38 2 5 Haulers Intercepted 2 | . 2 . . Recyclers Shooed . | . . . . Parts Field Recycled . | . . . . Retrieved Matter . | . . . . Parts Self-Destructed . | . . . . Prevented . | . . . . Kills | -11 -10 -10 -10 ------- Run | Yrd Mat Min Sub Combat Hostiles Destroyed 21 | . 13 5 3 Guns 8 | . 4 2 2 Cannons 6 | . 3 2 1 AOE 7 | . 6 1 . Classes Destroyed 9 | 1 7 . 1 Worker 1 | . 1 . . Tunneler 1 | 1 . . . Hauler 2 | . 2 . . Recycler 1 | . 1 . . Operator 2 | . 2 . . Watcher 2 | . 2 . . Swarmer 11 | . 9 2 . Grunt 7 | . 4 3 . Subdweller 3 | . . . 3 Best Kill Streak 6 | 1 6 2 2 Combat Bots Only 6 | . 6 2 2 Max Kills in Single Turn 5 | 1 5 1 1 Gunslinging . | . . . . Exploded 5 | . 5 1 . Melee . | . . . . Uniques/NPCs Destroyed . | . . . . Combat | -11 -10 -10 -10 -------- Run | Yrd Mat Min Sub Hostile Shots Fired 117 | . 49 30 38 Missed 24 | . 10 6 8 Damage Taken 1559 | 6 385 287 881 Core 257 | . 56 99 102 Absorbed by Shields . | . . . . Core Remaining (%) 100 | 100 . . . Volleys Fired 96 | 4 45 27 20 Largest 2 | 2 2 2 2 Hottest 180 | 80 125 125 180 Shots Fired 159 | 8 82 35 34 Gun 82 | 8 40 10 24 Cannon 72 | . 39 24 9 Launcher 3 | . 3 . . Special 2 | . . 1 1 Kinetic 20 | . . . 20 Thermal 121 | 4 72 35 10 Explosive 3 | . 3 . . Electromagnetic 15 | 4 7 . 4 Robot Hit Streak 16 | 5 14 5 16 Robot Miss Streak 4 | 2 4 3 1 Penetration Max . | . . . . Secondary Targets . | . . . . Shots Hit Robots 95 | 6 43 16 30 Core Hits 41 | 2 23 8 8 Critical Kills . | . . . . Critical Parts Destroyed . | . . . . Critical Strikes 3 | . . 2 1 Burn 2 | . . 2 . Corrupt 1 | . . . 1 Melee Attacks . | . . . . Impact . | . . . . Slashing . | . . . . Piercing . | . . . . Sneak Attacks . | . . . . Combat Hostiles . | . . . . Follow-up Attacks . | . . . . Damage Inflicted 1864 | 150 968 316 430 Guns 740 | 72 322 97 249 Cannons 739 | . 385 173 181 Explosions 380 | 78 261 41 . Melee . | . . . . Ramming 5 | . . 5 . Kinetic 202 | . . . 202 Thermal 1209 | 109 608 311 181 Explosive 261 | . 261 . . Electromagnetic 187 | 41 99 . 47 Impact . | . . . . Slashing . | . . . . Piercing . | . . . . Highest Corruption 1 | . 1 1 1 Average Corruption 1 | . 1 1 1 Corruption Purged . | . . . . Corruption Blocked . | . . . . Effects 10 | . 3 6 1 Message Errors 3 | . 1 2 . Matter Fused 2 | . . 2 . Energy Discharges 2 | . 1 . 1 Misfires 1 | . . 1 . Alerts 1 | . . 1 . Weapon Failures 1 | . 1 . . Overload Shots . | . . . . Overflow Damage 17 | . 17 . . Projectiles . | . . . . Explosions 17 | . 17 . . Melee . | . . . . Knockbacks . | . . . . Impact . | . . . . Kinetic . | . . . . Secondary . | . . . . Self-Inflicted Damage 72 | 6 . 66 . Shots 3 | 1 . 2 . Rammed 2 | . . 2 . Targets Rammed 2 | . . 2 . Kicked . | . . . . Crushed . | . . . . Highest Temperature 504 | 66 504 409 76 Average Temperature 133 | 31 144 137 31 Received Heat Transfer 435 | . 141 60 234 Effects 9 | . 3 6 . Shutdowns 2 | . 1 1 . Energy Bleed 3 | . 1 2 . Interference 4 | . 1 3 . Siege Activations . | . . . . Robots Corrupted . | . . . . Combat Hostiles . | . . . . Parts Fried . | . . . . Impact Corruptions . | . . . . Robots Melted . | . . . . Combat Hostiles . | . . . . Parts Melted 5 | . 3 . 2 Heat Transferred 2506 | 125 1332 790 259 Parts Sabotaged . | . . . . Parts Stolen . | . . . . Parts Stripped . | . . . . Power Chain Reactions 1 | 1 . . . Alert | -11 -10 -10 -10 ------- Run | Yrd Mat Min Sub Peak Influence 311 | 5 284 311 . Initial 86 | . 3 86 . Average 134 | 3 141 138 . Maximum Alert Level 1 | . 1 1 . Low Security (%) 68 | 100 63 70 . Level 1 31 | . 36 29 . Level 2 . | . . . . Level 3 . | . . . . Level 4 . | . . . . Level 5 . | . . . . High Security . | . . . . Max Security . | . . . . Squads Dispatched 2 | . 2 . . Investigation 1 | . 1 . . Extermination . | . . . . Reinforcement 1 | . 1 . . Assault . | . . . . Garrison . | . . . . Intercept . | . . . . Searches Triggered . | . . . . Construction Impeded . | . . . . Haulers Reinforced . | . . . . Active Scanning Responses . | . . . . Cargo Convoy Interrupts . | . . . . Stealth | -11 -10 -10 -10 --------- Run | Yrd Mat Min Sub Distress Signals 1 | . . 1 . Communications Jammed . | . . . . Distress Signals . | . . . . Times Spotted 36 | . 21 9 6 Peak Tracking Total 6 | . 6 3 2 Tactical Retreats 9 | . 2 7 . Traps | -11 -10 -10 -10 ------- Run | Yrd Mat Min Sub Traps Triggered 2 | . 2 . . Indirectly . | . . . . Trap Hack Attempts . | . . . . Triggered . | . . . . Disarmed . | . . . . Reprogrammed . | . . . . Reused . | . . . . Traps Extracted . | . . . . Installed . | . . . . Triggered . | . . . . Machines | -11 -10 -10 -10 ---------- Run | Yrd Mat Min Sub Machines Disabled 4 | . 2 2 . Max in Single Turn 2 | . 1 2 . Machines Repaired . | . . . . Machines Dismantled . | . . . . Machines Sabotaged . | . . . . Overloaded Fab Kills . | . . . . Hacking | -11 -10 -10 -10 --------- Run | Yrd Mat Min Sub Machines Accessed 8 | . 8 . . Terminals 6 | . 6 . . Fabricators . | . . . . Repair Stations 1 | . 1 . . Recycling Units 1 | . 1 . . Scanalyzers . | . . . . Garrison Access . | . . . . Total Hacks 27 | . 27 . . Successful 11 | . 11 . . Failed 16 | . 16 . . Catastrophic 4 | . 4 . . Database Lockouts . | . . . . Manual 11 | . 11 . . Terminals 24 | . 24 . . Fabricators . | . . . . Repair Stations 1 | . 1 . . Recycling Units 2 | . 2 . . Scanalyzers . | . . . . Garrison Access . | . . . . Terminal Hacks 11 | . 11 . . Prototype ID Bank 5 | . 5 . . Branch Access Points 1 | . 1 . . Locate Traps 2 | . 2 . . Dispatch Records 1 | . 1 . . Registered Components 1 | . 1 . . Registered Prototypes 1 | . 1 . . Fabricator Hacks . | . . . . Repair Station Hacks . | . . . . Recycling Unit Hacks . | . . . . Scanalyzer . | . . . . Garrison Access Hacks . | . . . . Unauthorized Hacks . | . . . . Terminals . | . . . . Fabricators . | . . . . Repair Stations . | . . . . Recycling Units . | . . . . Scanalyzers . | . . . . Garrison Access . | . . . . Data Cores Recovered 1 | . 1 . . Used . | . . . . Hacking Detections 8 | . 8 . . Full Trace Events . | . . . . Feedback Events . | . . . . Feedback Blocked . | . . . . Robot Schematics Acquired . | . . . . Robots Built . | . . . . Authchips . | . . . . Time . | . . . . Total Robot Build Rating . | . . . . Part Schematics Acquired . | . . . . Parts Built . | . . . . Authchips . | . . . . Time . | . . . . Total Part Build Rating . | . . . . Parts Repaired . | . . . . Time . | . . . . Parts Recycled . | . . . . Recycled Matter . | . . . . Retrieved Matter . | . . . . Retrieved Components . | . . . . Parts Scanalyzed . | . . . . Part Schematics Acquired . | . . . . Parts Damaged . | . . . . Bothacking | -11 -10 -10 -10 ------------ Run | Yrd Mat Min Sub Used RIF Installer . | . . . . Robots Hacked . | . . . . Non-combat . | . . . . Combat . | . . . . Robot Hacks Applied . | . . . . Relay Couplers Released . | . . . . Fabnet Peak Effective % . | . . . . Robots Rewired . | . . . . Allies Hacked . | . . . . Hacks Repelled . | . . . . Allies | -11 -10 -10 -10 -------- Run | Yrd Mat Min Sub Total Allies . | . . . . Largest Group . | . . . . Highest-Rated Group . | . . . . Highest-Rated Ally . | . . . . Total Orders . | . . . . Ally Attacks . | . . . . Total Damage . | . . . . Kills . | . . . . Allies Corrupted . | . . . . Allies Melted . | . . . . Intel | -11 -10 -10 -10 ------- Run | Yrd Mat Min Sub Robot Analysis Total . | . . . . Derelict Logs Recovered 3 | . . 3 . Drone Launches . | . . . . Drone Recoveries . | . . . . Exploration | -11 -10 -10 -10 ------------- Run | Yrd Mat Min Sub Turns Passed 2596 | 92 1119 1158 227 Spaces Moved 1435 | 56 637 644 98 Core 3 | 3 . . . Treads 1083 | . 341 644 98 Legs 349 | 53 296 . . Wheels . | . . . . Hover . | . . . . Flight . | . . . . Fastest Speed 50 | 50 120 160 160 Average Speed 150 | 116 141 160 160 Slowest Speed 160 | 120 160 160 160 Overloaded Moves . | . . . . Propulsion Burnouts . | . . . . Robots Hopped . | . . . . Cave-ins Triggered . | . . . . Exploration Rate (%) 52 | 5 99 94 11 Regions Visited 3 Branch Regions 2 Pre-discovered Areas . | . . . . Known Exits Taken 2 | . 1 1 . Unknown Exits Taken 1 | 1 . . . Scrap Searched 1 | . . 1 . Spaces Dug 3 | . 3 . . Terrain Destroyed 27 | 2 12 12 1 Melee . | . . . . Projectile 1 | . . . 1 AOE 26 | 2 12 12 . Terrain Rammed . | . . . . Walls Destroyed . | . . . . Machines Disabled . | . . . . Actions | -11 -10 -10 -10 --------- Run | Yrd Mat Min Sub Total 1713 | 71 774 734 134 Wait 101 | . 48 47 6 Move 1432 | 55 636 643 98 Hop . | . . . . Pick Up 22 | 5 14 3 . Fast Attach 12 | 7 2 1 2 Attach 13 | . 4 3 6 Detach 1 | . . . 1 Swap 17 | . 12 5 . Drop 17 | . 13 3 1 Fire 96 | 4 45 27 20 Melee . | . . . . Ram . | . . . . Kick . | . . . . Crush 2 | . . 2 . Escape Stasis . | . . . . Rewire . | . . . . Trap . | . . . . Miscellaneous . | . . . . Route ------- -11/Scrapyard -10/Materials (discovered 4 exits: *Mat x3 / *Min) -10/Mines (discovered 3 exits: *Mat / [*Exi] / *Sub) -10/Subcaves History --------- Turn | Location | Event 26 | -11/Scrapyard | Discovered new exit (range 16) 93 | -11/Scrapyard | Entered Materials 285 | -10/Materials | Discovered new exit (range 16) 311 | -10/Materials | Build established: Mutant 475 | -10/Materials | Discovered new exit (range 11) 497 | -10/Materials | Identified exit to Mines 506 | -10/Materials | Identified exit to Materials 770 | -10/Materials | Discovered exit to Materials (range 9) 889 | -10/Materials | Build established: Scavenger-Mutant 1212 | -10/Materials | Entered Mines 1213 | -10/Mines | Assembled infested the area 1220 | -10/Mines | Met a Derelict bent on vengeance 1240 | -10/Mines | Core integrity fell below 50% 1309 | -10/Mines | Learned Materials stockpile data 1347 | -10/Mines | Learned 4 Materials zone layouts 1394 | -10/Mines | Discovered new exit (range 5) 1448 | -10/Mines | Discovered exit to Materials (range 8) 2152 | -10/Mines | Identified exit to Subcaves 2302 | -10/Mines | Received a Rocket Launcher from a helpful Derelict 2370 | -10/Mines | Entered Subcaves 2372 | -10/Subcaves | Ambushed by Subdwellers from Twisted Machinery 2389 | -10/Subcaves | Core integrity fell below 20% 2462 | -10/Subcaves | Lost 4 parts (1n3w) 2521 | -10/Subcaves | Lost 3 parts (1n1u1w) 2597 | -10/Subcaves | Destroyed by KK-GTJ(R) with Subdweller Machine Gun Last Messages --------------- 02411_ Acquired 28 matter. 02431_ Lgt. Assault Rifle destroyed. 02431_ SH-D18(R) destroyed. 02433_ Acquired EM Pulse Gun. 02435_ Acquired 8 matter. 02436_ Dropped Ion Engine. 02459_ Subatomizers dissect the Sub. Optics. 02470_ Acquired 8 matter. 02473_ Acquired 4 matter. 02486_ Lgt. Treads destroyed. 02490_ EM Pulse Gun destroyed. 02490_ Imp. Light Armor Plating destroyed. 02496_ CZ-YVN(R) misfires. 02496_ Disposable Heat Sink melted. 02496_ Sub. Monowheel melted. 02496_ CZ-YVN(R) destroyed. 02500_ System corrupted: Energy discharge (-52). 02503_ Acquired 30 matter. 02560_ BJ-IU2(z): "She is not going to be happy we haven't found any suitable candidates yet." Map ----- +----------------------------------------------------+ | ??????????????????????????????????????#??????????? | | ?????????????????????????????????????? ??????????? | | ????????????????????????????????????? ??????????? | | ????????????????????????????????????? #???##???? | | ?????????????????????????????????????" "#??## ??## | | ????????????????????????????????????? "#??# ## # | | ????????????????????????????????????? ??# | | ????????????????????????????????????? ??? ? | | ????????????????????????????????????? ??? ? | | ????????????????????????????????????? #??? ?? | | ?????????????????????????????????????# #???# ?? | | ??????????????????????????????###????# #???# ##? | | ??????????????????????????????# ##?? #???# #? | | ????????????????# ???????????# ##?# #???# ##? | | ????????????????? #???????????# ### ###### #? | | ?????????????????? #???????????# # # ## ## | | ?????????????????? ??????????## # | | ??????????????????? ???????### ###### # # # | | ???????????????????? R??????## #????##### ## | | ??????????????????### ?????# ###???#### " # | | ???????????????#??# ?????# ##?????# "" | | ??????????????## # ????## ##?????# "" | | ??????????????# %?????# ""#?????# ""### | | ?????????????## ????# #"""""## "##??# | | ?????????????? ##### "" """""????? | | ?????????????????????# @ ## ""?????? | | ?????????????????????# #?# # """?????? | | ?????????????????????# ##### #??######" ???? | | ????????????????????# ????# #????????????????? | | ??????????????????# ????# #???????????????? | | ????????????????? ???? ##???????????????? | | ??????????????? ?????# ##????????????????? | | ?????????????? ### ?????# #?????????????????? | | ?????????????? #???## ????? #?????????????????? | | ?????????????##??????# #?????# ??????????????????? | | ????????????????????? ??????# ??????????????????? | | ????????????????????? ?????? ??????????????????? | | ????????????????????## ??????# ??????????????????? | | ?????????????????????#???????? ??????????????????? | | ?????????????????????????????? ??????????????????? | | ??????????????????????????????#??????????????????? | | ?????????????????????????????????????????????????? | | ?????????????????????????????????????????????????? | | ?????????????????????????????????????????????????? | | ?????????????????????????????????????????????????? | | ?????????????????????????????????????????????????? | | ?????????????????????????????????????????????????? | | ?????????????????????????????????????????????????? | | ?????????????????????????????????????????????????? | | ?????????????????????????????????????????????????? | +----------------------------------------------------+ Best States ------------- Heat Dissipation 35 Energy Generation 10 Energy Capacity 250 Matter Stores 300 Matter Capacity 300 Sight Range 16 Terrain Scan Density 10 Armor Coverage 150 Evasion (%) 55 Recoil Reduction 2 Item Schematics ----------------- None Robot Schematics ------------------ None Fabricated ------------ Nothing Alien Tech Used ----------------- None Achievements -------------- None Challenges ------------ None Game ------ Seed ThrowingSpectralRegenerator Manual? 0 Play Time 00:33:01 Cumulative 14.9 hours Start 2024.08.31 @ 22:29:09 End 2024.08.31 @ 23:14:06 Sessions 1 Manual Loads 0 Difficulty Rogue Special Mode None Game No. 12 Rogue 12 Adventurer 0 Explorer 0 Win Type - Total 0 Types 0/0/0/0/0/0/0/0/0 Lore% 10 Gallery% 12 Achievement% 30 Wizard Run 0 Options --------- Layout 0 ASCII 0 Keyboard 0 Movement Mouse Keybinds 0 Fullscreen 1 Font 16/SmallcapsGlow Map View 37x27 Zoom Use 90% Tactical HUD 1 Map Filters NONE Filters NONE Steam 1 RUN: 5add9e6b-7102-46a3-8652-5373d2348ef5